Cogmind - Beta 16 @@@ ROGUE MODE // 2025.10.26 @ 09:29:59 Player: Florist Result: Destroyed by 6V-NNW(R) with Subdweller Machine Gun Performance ------------- Evolutions (0) 0 Regions Visited (2) 400 Robots Destroyed (14) 70 Value Destroyed (322) 322 Prototype IDs (0) 0 Alien Tech Used (0) 0 Bonus (0) 0 TOTAL SCORE: 792 Bonus ------- None Cogmind --------- Core Integrity 0/250 Matter 263/300 Energy 160/160 System Corruption 0% Temperature Cool (0) Movement Rolling (90) Location -10/Subcaves Parts ------- > --- POWER (1) -------- Light Nuclear Core > --- PROPULSION (2) --- Wheel Compact Wheel > --- UTILITY (2) ------ Small Storage Unit Seismic Detector > --- WEAPON (2) ------- Subdweller Machine Gun Light Cannon > --- INVENTORY (8) ---- Subdweller Power Source Subdweller Monowheel Subdweller Monowheel Structural Scanner Small Laser Light Assault Rifle Subdweller Machine Gun Peak State ------------ > --- POWER ------------ Light Nuclear Core > --- PROPULSION ------- Wheel Compact Wheel > --- UTILITY ---------- Small Storage Unit Seismic Detector > --- WEAPON ----------- Subdweller Machine Gun Light Cannon > --- INVENTORY -------- Subdweller Power Source Subdweller Monowheel Subdweller Monowheel Structural Scanner Small Laser Light Assault Rifle Subdweller Machine Gun [Rating: 11] Favorites ----------- Power Light Ion Engine Engine Light Ion Engine Power Core Light Nuclear Core Propulsion Light Treads Treads Light Treads Wheel Wheel Utility Small Storage Unit Device Seismic Detector Storage Small Storage Unit Weapon Medium Laser Energy Gun Medium Laser Ballistic Gun Light Assault Rifle Ballistic Cannon Light Cannon Build | -11 -10 -10 ------- Run | Yrd Mat Sub Slots Evolved . | . . . Power . | . . . Propulsion . | . . . Utility . | . . . Weapon . | . . . Parts Attached 13 | 7 . 6 Power 2 | 1 . 1 Engine 1 | 1 . . Core 1 | . . 1 Reactor . | . . . Propulsion 4 | 2 . 2 Treads 2 | 2 . . Leg . | . . . Wheel 2 | . . 2 Hover . | . . . Flight . | . . . Utility 2 | 2 . . Device 1 | 1 . . Storage 1 | 1 . . Processor . | . . . Hackware . | . . . Protection . | . . . Artifact . | . . . Weapon 5 | 2 . 3 Energy Gun 1 | 1 . . Energy Cannon . | . . . Ballistic Gun 3 | 1 . 2 Ballistic Cannon 1 | . . 1 Launcher . | . . . Special Weapon . | . . . Impact Weapon . | . . . Slashing Weapon . | . . . Piercing Weapon . | . . . Special Melee Weapon . | . . . Unidentified Prototypes . | . . . Parts Lost 4 | . . 4 Power . | . . . Propulsion 2 | . . 2 Utility . | . . . Weapon 2 | . . 2 Highest Loss Streak 3 | . . 3 To Critical Strikes . | . . . Average Backups 4 | 1 4 6 Power . | . . 1 Propulsion 1 | . 2 2 Utility . | . . 1 Weapon 1 | . 1 2 Tool/Special . | . . . Unused Backups 6 | . . 6 Power 1 | . . 1 Propulsion 2 | . . 2 Utility 1 | . . 1 Weapon 2 | . . 2 Tool/Special . | . . . Average Slot Usage (%) 97 | . 100 95 Engine 10 | . 14 8 Core 3 | . . 5 Treads 16 | . 28 8 Wheel 9 | . . 15 Device 14 | . 14 14 Storage 14 | . 14 14 Energy Gun 8 | . 14 5 Ballistic Gun 14 | . 14 14 Ballistic Cannon 5 | . . 8 Peak Build Rating 11 | 7 7 11 Average Rating 7 | 4 7 8 On Entrance 4 | . 7 7 Avg Prop Armor Cover (%) . | . . . Naked Turns . | . . . Heaviest Build 18 | 12 12 18 Greatest Support 40 | 40 40 40 Greatest Overweight (x) 5 | . . 5 Average Overweight (x) . | . . . Largest Inventory Capacity 8 | 8 8 8 Average Capacity 7 | 6 8 8 Most Carried 8 | 4 6 8 Average Carried 5 | 1 4 7 Final Capacity 8 | 8 8 8 Final Carried 7 | 3 6 7 Class Distribution -------------------- 100% | Mutant Dominant Class ---------------- Mutant | -10/Materials Mutant | -10/Subcaves Resources | -11 -10 -10 ----------- Run | Yrd Mat Sub Matter Collected 363 | 288 10 65 Remotely . | . . . Salvage Created 590 | 163 366 61 Parts 31 | 9 16 6 Haulers Intercepted . | . . . Recyclers Shooed . | . . . Parts Field Recycled . | . . . Retrieved Matter . | . . . Parts Self-Destructed 2 | . . 2 Prevented . | . . . Parts Restored . | . . . Kills | -11 -10 -10 ------- Run | Yrd Mat Sub Combat Hostiles Destroyed 7 | . 5 2 Guns 7 | . 5 2 Classes Destroyed 4 | 2 1 1 Tunneler 4 | 4 . . Recycler 3 | 1 2 . Grunt 5 | . 5 . Subdweller 2 | . . 2 Best Kill Streak 3 | 3 3 1 Combat Bots Only 3 | . 3 1 Max Kills in Single Turn 1 | 1 1 1 Gunslinging . | . . . Exploded . | . . . Melee . | . . . Uniques/NPCs Destroyed . | . . . Combat | -11 -10 -10 -------- Run | Yrd Mat Sub Hostile Shots Fired 70 | . 30 40 Missed 17 | . 8 9 Hits 53 | . 22 31 Projectile 53 | . 22 31 Critical Strikes 1 | . . 1 Damage Taken 942 | . 290 652 Core 251 | . 81 170 Absorbed by Shields . | . . . Core Remaining (%) 100 | 100 . . Volleys Fired 57 | 18 20 19 Largest 2 | 2 2 2 Hottest 80 | 70 70 80 Shots Fired 112 | 35 40 37 Gun 108 | 35 40 33 Cannon 4 | . . 4 Launcher . | . . . Special . | . . . Kinetic 60 | 18 20 22 Thermal 52 | 17 20 15 Explosive . | . . . Electromagnetic . | . . . Robot Hit Streak 23 | 8 14 23 Robot Miss Streak 4 | 2 4 2 Penetration Max . | . . . Secondary Targets . | . . . Shots Hit Robots 85 | 26 27 32 Core Hits 32 | 10 15 7 Critical Kills . | . . . Critical Parts Destroyed . | . . . Critical Strikes 7 | 3 3 1 Burn 7 | 3 3 1 Melee Attacks . | . . . Impact . | . . . Slashing . | . . . Piercing . | . . . Sneak Attacks . | . . . Combat Hostiles . | . . . Follow-up Attacks . | . . . Damage Inflicted 892 | 290 298 304 Guns 843 | 290 298 255 Cannons 49 | . . 49 Explosions . | . . . Melee . | . . . Ramming . | . . . Kinetic 390 | 103 94 193 Thermal 502 | 187 204 111 Explosive . | . . . Electromagnetic . | . . . Impact . | . . . Slashing . | . . . Piercing . | . . . Highest Corruption . | . . . Average Corruption . | . . . Corruption Purged . | . . . Corruption Blocked . | . . . Overload Shots . | . . . Overflow Damage . | . . . Projectiles . | . . . Explosions . | . . . Melee . | . . . Knockbacks . | . . . Impact . | . . . Kinetic . | . . . Secondary . | . . . Self-Inflicted Damage . | . . . Shots . | . . . Rammed . | . . . Targets Rammed . | . . . Kicked . | . . . Crushed . | . . . Highest Temperature 229 | 150 229 . Average Temperature 73 | 58 84 . Received Heat Transfer 156 | . 156 . Siege Activations . | . . . Martial Activations . | . . . Shielding Activations . | . . . Robots Disrupted . | . . . Combat Hostiles . | . . . Robots Corrupted . | . . . Combat Hostiles . | . . . Parts Fried . | . . . Impact Corruptions . | . . . Robots Melted . | . . . Combat Hostiles . | . . . Parts Melted 7 | 3 2 2 Heat Transferred 1998 | 777 814 407 Parts Sabotaged . | . . . Parts Stolen . | . . . Parts Stripped . | . . . Power Chain Reactions . | . . . Alert | -11 -10 -10 ------- Run | Yrd Mat Sub Maximum Alert Level . | . . . Low Security (%) 100 | 100 100 . Level 1 . | . . . Level 2 . | . . . Level 3 . | . . . Level 4 . | . . . Level 5 . | . . . High Security . | . . . Max Security . | . . . Peak Influence 120 | 5 120 . Initial . | . . . Average 30 | 1 52 . Influence Increases 225 | 25 200 . Destroy 0b10 Robot/C 100 | . 100 . Destroy 0b10 Robot/NC 35 | 25 10 . Destroy Leader 30 | . 30 . Select Force Hacks 30 | . 30 . Lose Combat Pursuer 30 | . 30 . Influence Decreases 225 | 25 80 120 Entered New Map 58 | . . 58 Time Decay 145 | 25 80 40 Lost Part 22 | . . 22 Squads Dispatched 1 | . 1 . Investigation 1 | . 1 . Extermination . | . . . Reinforcement . | . . . Assault . | . . . Garrison . | . . . Intercept . | . . . Searches Triggered . | . . . Construction Impeded . | . . . Haulers Reinforced . | . . . Active Scanning Responses . | . . . Cargo Convoy Interrupts . | . . . Stealth | -11 -10 -10 --------- Run | Yrd Mat Sub Distress Signals . | . . . Communications Jammed . | . . . Distress Signals . | . . . Times Spotted 12 | . 8 4 Peak Tracking Total 4 | . 4 2 Tactical Retreats 1 | . 1 . Traps | -11 -10 -10 ------- Run | Yrd Mat Sub Traps Triggered . | . . . Indirectly . | . . . Trap Hack Attempts . | . . . Triggered . | . . . Disarmed . | . . . Reprogrammed . | . . . Reused 1 | . . 1 Traps Extracted . | . . . Installed 1 | . . 1 Triggered . | . . . Most Traps Carried 1 | . . 1 Machines | -11 -10 -10 ---------- Run | Yrd Mat Sub Machines Disabled . | . . . Max in Single Turn . | . . . Machines Repaired . | . . . Machines Dismantled . | . . . Machines Sabotaged . | . . . Overloaded Fab Kills . | . . . Hacking | -11 -10 -10 --------- Run | Yrd Mat Sub Machines Accessed 2 | . 2 . Terminals 1 | . 1 . Fabricators . | . . . Repair Stations . | . . . Recycling Units 1 | . 1 . Scanalyzers . | . . . Garrison Access . | . . . Total Hacks 6 | . 6 . Successful 2 | . 2 . Failed 4 | . 4 . Catastrophic . | . . . Database Lockouts . | . . . Manual 4 | . 4 . Terminals 3 | . 3 . Fabricators . | . . . Repair Stations . | . . . Recycling Units 3 | . 3 . Scanalyzers . | . . . Garrison Access . | . . . Terminal Hacks . | . . . Fabricator Hacks . | . . . Repair Station Hacks . | . . . Recycling Unit Hacks 1 | . 1 . Retrieve Components 1 | . 1 . Scanalyzer . | . . . Garrison Access Hacks . | . . . Unauthorized Hacks 1 | . 1 . Terminals . | . . . Fabricators . | . . . Repair Stations . | . . . Recycling Units 1 | . 1 . Tunnel 1 | . 1 . Scanalyzers . | . . . Garrison Access . | . . . Data Cores Recovered . | . . . Used . | . . . Hacking Detections 1 | . 1 . Full Trace Events . | . . . Feedback Events . | . . . Feedback Blocked . | . . . Robot Schematics Acquired . | . . . Robots Built . | . . . Authchips . | . . . Time . | . . . Total Robot Build Rating . | . . . Part Schematics Acquired . | . . . Parts Built . | . . . Authchips . | . . . Time . | . . . Total Part Build Rating . | . . . Part Studies Acquired . | . . . Parts Repaired . | . . . Time . | . . . Parts Recycled . | . . . Recycled Matter . | . . . Retrieved Matter . | . . . Retrieved Components 1 | . 1 . Parts Scanalyzed . | . . . Part Schematics Acquired . | . . . Parts Damaged . | . . . Bothacking | -11 -10 -10 ------------ Run | Yrd Mat Sub Used RIF Installer . | . . . Robots Hacked . | . . . Non-combat . | . . . Combat . | . . . Robot Hacks Applied . | . . . Relay Couplers Released . | . . . Fabnet Peak Effective % . | . . . Robots Rewired . | . . . Allies Hacked . | . . . Hacks Repelled . | . . . Allies | -11 -10 -10 -------- Run | Yrd Mat Sub Total Allies . | . . . Largest Group . | . . . Highest-Rated Group . | . . . Highest-Rated Ally . | . . . Total Orders . | . . . Ally Attacks . | . . . Total Damage . | . . . Kills . | . . . Allies Corrupted . | . . . Allies Melted . | . . . Intel | -11 -10 -10 ------- Run | Yrd Mat Sub Active Infowar (turns) 482 | 3 197 282 Seismic 482 | 3 197 282 Robot Analysis Total . | . . . Derelict Logs Recovered 1 | . . 1 Drone Launches . | . . . Drone Recoveries . | . . . Exploration | -11 -10 -10 ------------- Run | Yrd Mat Sub Turns Passed 627 | 148 197 282 Spaces Moved 339 | 54 80 205 Core 4 | 1 . 3 Treads 166 | 53 80 33 Legs . | . . . Wheels 169 | . . 169 Hover . | . . . Flight . | . . . Fastest Speed 50 | 50 160 90 Average Speed 125 | 157 160 103 Slowest Speed 300 | 160 160 300 Overloaded Moves . | . . . Propulsion Burnouts . | . . . Robots Hopped . | . . . Potential Cave-ins . | . . . Cave-ins Triggered . | . . . Exploration Rate (%) 9 | 4 13 12 Regions Visited 2 Branch Regions 1 Pre-discovered Areas 2 | . 1 1 Known Exits Taken . | . . . Unknown Exits Taken 2 | 1 1 . Scrap Searched . | . . . Spaces Dug . | . . . Terrain Destroyed . | . . . Melee . | . . . Projectile . | . . . AOE . | . . . Terrain Rammed . | . . . Walls Destroyed . | . . . Machines Disabled . | . . . Actions | -11 -10 -10 --------- Run | Yrd Mat Sub Total 435 | 82 113 240 Wait 12 | . 11 1 Move 337 | 53 79 205 Hop . | . . . Pick Up 12 | 4 3 5 Fast Attach 6 | 6 . . Attach 6 | 1 . 5 Detach . | . . . Swap 2 | . . 2 Drop 2 | . . 2 Fire 57 | 18 20 19 Melee . | . . . Ram . | . . . Kick . | . . . Crush . | . . . Escape Stasis . | . . . Rewire . | . . . Trap 1 | . . 1 Miscellaneous . | . . . Route ------- -11/Scrapyard -10/Materials -10/Subcaves History --------- Turn | Location | Event 31 | -11/Scrapyard | Discovered new exit (range 15) 149 | -11/Scrapyard | Entered Materials 257 | -10/Materials | Discovered new exit (range 13) 300 | -10/Materials | Build established: Mutant 346 | -10/Materials | Entered Subcaves 361 | -10/Subcaves | Learned location of Zion (-6) 384 | -10/Subcaves | Ambushed by Subdwellers from Twisted Machinery 400 | -10/Subcaves | Core integrity fell below 50% 432 | -10/Subcaves | Core integrity fell below 20% 482 | -10/Subcaves | Lost 3 parts (1n2w) 485 | -10/Subcaves | Shifting Twisted Machinery released Sub. Machine Gun 488 | -10/Subcaves | Shifting Twisted Machinery released Piercing Trap 617 | -10/Subcaves | Ambushed by Subdwellers from Twisted Machinery 628 | -10/Subcaves | Destroyed by 6V-NNW(R) with Subdweller Machine Gun Last Messages --------------- 00451_ LF-ZVK(R) destroyed. 00458_ Subatomizers dissect the Sub. Monowheel. 00460_ Acquired 30 matter. 00466_ Acquired Sub. Monowheel. 00470_ Subatomizers dissect the Disposable Heat Sink. 00471_ Acquired Sub. Power Source. 00474_ Acquired 34 matter. 00475_ Acquired 1 matter. Sub. Machine Gun falls loose from the Twisted Machinery. Piercing Trap falls loose from the Twisted Machinery. 00492_ Acquired Sub. Machine Gun. 00501_ Dropped Lgt. Ion Engine. 00502_ Acquired Piercing Trap. 00507_ Subatomizers dissect the Lgt. Ion Engine, destroying it. 00521_ Subatomizers dissect the Disposable Heat Sink. 00621_ Dropped Piercing Trap. 00622_ Installed Piercing Trap. 00626_ 6V-NNW(R) triggered Piercing Trap. 00626_ Spikes shoot up from the floor. 00626_ 6V-NNW(R) suffers critical hit (Impale). Map ----- +----------------------------------------------------+ | #?????### " ### #?????????????????????????? | | ####### ####??###?????????????????? | | #### ########??????????? | | # #??????????? | | #### # ## ## ## #??????????? | | ???#### ## ####### #??????????? | | ?????# ##### ## #?????# # #### #?????????? | | ????# ##???#### ###########???####?????????? | | ????# ##?????### ## ###??????????????????? | | ????# ??????## ##?????????????????? | | ????# #?????## ##????????????????? | | ????##??????# #????????????????? | | ????????????## #????????????????? | | ????????????### #????????????????? | | ????????????# ##????????????????? | | ?????????? ##?????????????????? | | ?????????? ##??????????????????? | | ????????? # #???????????????????? | | ????????? ## ## #???????????????????? | | ?????????? ?## #?# #???????????????????? | | ?????????? ????#####?## ###?????????????????? | | ?????????????????????# #?????????????????? | | ?????????????????????# #?????????????????? | | ?????????????????????# ###???????????????? | | ?????????????????????## ##??????????????? | | ??????????????????????###@ R #??????????????? | | ????????????????????????#####R #???????????? | | ????????????????????????????? # ##???????????? | | ????????????????????????????? ## ##????????????? | | ????????????????????????????? ?###?????????????? | | ????????????????????????????? ##????????????????? | | ????????????????????????????? ?????????????????? | | ?????????????????????????????"" ?????????????????? | | ????????????????????????????? """????????????????? | | ?????????????????????????????? "????????????????? | | ?????????????????????????????? ??????????????????? | | ?????????????????????????????????????????????????? | | ?????????????????????????????????????????????????? | | ?????????????????????????????????????????????????? | | ?????????????????????????????????????????????????? | | ?????????????????????????????????????????????????? | | ?????????????????????????????????????????????????? | | ?????????????????????????????????????????????????? | | ?????????????????????????????????????????????????? | | ?????????????????????????????????????????????????? | | ?????????????????????????????????????????????????? | | ?????????????????????????????????????????????????? | | ?????????????????????????????????????????????????? | | ?????????????????????????????????????????????????? | | ?????????????????????????????????????????????????? | +----------------------------------------------------+ Best States ------------- Heat Dissipation 25 Energy Generation 14 Energy Capacity 160 Matter Stores 300 Matter Capacity 300 Sight Range 16 Terrain Scan Density 10 Evasion (%) 42 Recoil Reduction 2 Item Schematics ----------------- None Robot Schematics ------------------ None Fabricated ------------ Nothing Repaired ---------- Nothing Studied --------- None Alien Tech Used ----------------- None Achievements -------------- None Challenges ------------ None Game ------ Seed SubatomicSupersonicFragment Manual? 0 Play Time 00:04:59 Cumulative 259.1 hours Start 2025.10.26 @ 09:26:26 End 2025.10.26 @ 09:29:59 Sessions 1 Manual Loads 0 Difficulty Rogue Special Mode None Game No. 217 Rogue 217 Adventurer 0 Explorer 0 Win Type - Total 14 Types 6/0/6/2/0/0/0/0/0/0 Lore% 80 Gallery% 74 Achievement% 44 Wizard Run 0 Options --------- Layout 1 ASCII 0 Keyboard 0 Movement Numpad Keybinds 0 Fullscreen 1 Font 32/SmallcapsGlow Map View 77x35 Zoom Use 0% Tactical HUD 1 Map Filters NONE Filters NONE Steam 1 RUN: fde34827-8f44-447d-8663-d3593c09abf9